Workbook

Sheet Pasiūlymas
A2: PIRKIMO SĄLYGŲ PRIEDAS "PASIŪLYMŲ FORMA"
A4: REKLAMOS PASLAUGŲ PLANAVIMAS IR ADMINISTRAVIMAS VŠĮ „KAUNAS 2022“ KOMUNIKACIJAI IR SKLAIDAI 2021-AISIAIS IR 2022-AISIAIS M.
A6: Kam: | B6: VšĮ Kaunas 2022
A8: Data: | B8: 2021.08.27
A9: Nr.: | B9: CARAT Nr.1
A10: Vieta: | B10: Vilnius
A12: Tiekėjo pavadinimas / Ūkio subjektų grupės nariai: | C12: UAB CARAT
A13: Tiekėjo kodas (-ai): | C13: 124216438
A14: Tiekėjo adresas (-ai): | C14: A. Goštauto g. 40B, Vilnius, Lietuva
A15: Tiekėjo PVM mokėtojo kodas(-ai): | C15: LT242164314
A16: Tiekėjo / Ūkio subjektų grupės atsakingo partnerio sąskaitos numeris, banko pavadinimas ir banko kodas (-ai): | C16: LT917300010000022959, "Swedbank" AB, Vilnius, Lithuania, HABALT22
A17: Asmens atsakingo už pasiūlymą vardas, pavardė: | C17: Rita Jermakaitė
A18: Asmens atsakingo už pasiūlymą telefono numeris, el. pašto adresas: | C18: +370 6860 4918, rita.jermakaite@carat.com
A19: Tiekėjo / Ūkio subjektų grupės, laimėjimo atveju, pasirašančio sutartį asmens vardas, pavardė, pareigos: | C19: Rita Jermakaitė, vykdančioji direktorė
A20: Tiekėjo / Ūkio subjektų grupės, laimėjimo atveju, už sutarties vykdymą atsakingo asmens vardas, pavardė, telefono numeris, elektroninio pašto adresas: | C20: Rita Jermakaitė, +370 6860 4918, rita.jermakaite@carat.com
A21: (1) Tiekėjo / Ūkio subjektų grupės narių, (2) ūkio subjektų, kurių pajėgumais remiamasi, ir (3) jei pašalinimo pagrindai taikomi visiems subtiekėjams - subtiekėjų, kolegialaus priežiūros organo (Stebėtojų tarybos) ir (ar) kolegialaus valdymo organo (Valdybos) narių sąrašas (jei sudaryta) ir (ar) asmuo, kuriam suteikti VPĮ 46 str. 2 d. 2 p. numatyti įgaliojimai | H21: =IF((SUMPRODUCT(--(C21=""))>0), "Privaloma užpildyti, kai taikomi pašalinimo pagrindai", "") -> Privaloma užpildyti, kai taikomi pašalinimo pagrindai
A23: Tiekėjo patvirtinimai:
A24: 1. Šiuo pasiūlymu pažymime, kad sutinkame su visomi pirkimo sąlygomis, nustatytomis:
A25: 1.1. viešojo pirkimo dokumentuose
A26: 1.2. kituose pirkimo dokumentuose (jų paaiškinimuose, papildymuose).
A27: 2. Patvirtiname, kad informacija ir duomenys, pateikti pasiūlyme, yra teisingi ir apima viską, ko reikia tinkamam sutarties įvykdymui
A28: 3. Patvirtiname, kad jei pasiūlyme nenurodyti kolegialaus priežiūros/valdymo organų nariai, šie organai juridiniuose asmenyse nėra sudaryti (taikoma, kai pirkimo dokumentuose nustatyti pašalinimo pagrindai).
A29: 4. Pasiūlymas galioja iki termino, nustatyto pirkimo dokumentuose.
A30: 5. Tais atvejais, kai pagal galiojančius teisės aktus tiekėjui nereikia mokėti PVM, jis nurodo priežastis, dėl kurių PVM nemoka:
A31: 6. Tiekėjas kainas pateikia, nurodydamas ne daugiau skaičių po kablelio, nei leidžiama pirkimo dokumentuose.
A32: 1. DALIS | B32: REKLAMA INTERNETO PORTALUOSE
A34: Tiekėjo pasiūlymas:
A35: Nr. | B35: Pavadinimas | C35: Preliminati apimtis | D35: Mato vienetas | E35: Vieneto įkainis be PVM, Eur | F35: Administravimo procentas (%) | G35: Suma be PVM, Eur | H35: Portalo pavadinimas
A36: 1. | B36: Reklama interneto portaluose
A37: 1.1. | B37: Interneto portalas Nr. 1
A38: 1.1.1. | B38: Interneto portalas Nr. 1 banerių formatai Desktop pozicijos (vnt. – 1000 parodymų) | C38: 5000 | D38: Vnt. | E38: 1.8 | F38: 0.0001 | G38: =IF(ISBLANK(E38),"", PRODUCT(C38,E38)+PRODUCT(C38,E38,F38)) -> 9000.9 | H38: kaunas.kasvyksta.lt
A39: 1.1.1.1. | B39: 300x600
A40: 1.1.2. | B40: Interneto portalas Nr. 1 banerių formatai Desktop pozicijos (vnt. – 1000 parodymų) | C40: 1000 | D40: Vnt. | E40: 1.8 | G40: =IF(ISBLANK(E40),"", PRODUCT(C40,E40)+PRODUCT(C40,E40,F38)) -> 1800.18 | H40: kaunas.kasvyksta.lt
A41: 1.1.2.1. | B41: 560x300
A42: 1.1.3. | B42: Interneto portalas Nr. 1 banerių formatai Mobile pozicijos (vnt. – 1000 parodymų) | C42: 5000 | D42: Vnt. | E42: 0.6 | G42: =IF(ISBLANK(E42),"", PRODUCT(C42,E42)+PRODUCT(C42,E42,F38)) -> 3000.3 | H42: kaunas.kasvyksta.lt
A43: 1.1.3.1. | B43: 300x250
A44: 1.2. | B44: Interneto portalas Nr. 2
A45: 1.2.1. | B45: Interneto portalas Nr. 2 banerių formatai Desktop pozicijos (vnt. – 1000 parodymų) | C45: 5000 | D45: Vnt. | E45: 1.21 | G45: =IF(ISBLANK(E45),"", PRODUCT(C45,E45)+PRODUCT(C45,E45,F38)) -> 6050.605 | H45: Delfi.lt
A46: 1.2.1.1. | B46: 1200x250
A47: 1.2.2. | B47: Interneto portalas Nr. 2 banerių formatai Desktop pozicijos (vnt. – 1000 parodymų) | C47: 1000 | D47: Vnt. | E47: 0.99 | G47: =IF(ISBLANK(E47),"", PRODUCT(C47,E47)+PRODUCT(C47,E47,F38)) -> 990.099 | H47: Delfi.lt
A48: 1.2.2.1. | B48: 1200x120
A49: 1.2.3. | B49: Interneto portalas Nr. 2 banerių formatai Desktop pozicijos (vnt. – 1000 parodymų) | C49: 10000 | D49: Vnt. | E49: 2.42 | G49: =IF(ISBLANK(E49),"", PRODUCT(C49,E49)+PRODUCT(C49,E49,F38)) -> 24202.42 | H49: Delfi.lt
A50: 1.2.3.1. | B50: 300x600
A51: 1.2.4. | B51: Interneto portalas Nr. 2 banerių formatai Desktop pozicijos (vnt. – 1000 parodymų) | C51: 1000 | D51: Vnt. | E51: 0.99 | G51: =IF(ISBLANK(E51),"", PRODUCT(C51,E51)+PRODUCT(C51,E51,F38)) -> 990.099 | H51: Delfi.lt
A52: 1.2.4.1. | B52: 880x250
A53: 1.2.5. | B53: Interneto portalas Nr. 2 banerių formatai Desktop pozicijos (vnt. – 1000 parodymų) | C53: 500 | D53: Vnt. | E53: 1.1 | G53: =IF(ISBLANK(E53),"", PRODUCT(C53,E53)+PRODUCT(C53,E53,F38)) -> 550.055 | H53: Delfi.lt
A54: 1.2.5.1. | B54: 300x600 + expand 600x600
A55: 1.2.6. | B55: Interneto portalas Nr. 2 banerių formatai Desktop pozicijos (vnt. – 1000 parodymų) | C55: 5000 | D55: Vnt. | E55: 1.65 | G55: =IF(ISBLANK(E55),"", PRODUCT(C55,E55)+PRODUCT(C55,E55,F38)) -> 8250.825 | H55: Delfi.lt
A56: 1.2.6.1. | B56: Video Preroll VOD
A57: 1.2.7. | B57: Interneto portalas Nr. 2 banerių formatai Mobile pozicijos (vnt. – 1000 parodymų) | C57: 10000 | D57: Vnt. | E57: 0.99 | G57: =IF(ISBLANK(E57),"", PRODUCT(C57,E57)+PRODUCT(C57,E57,F38)) -> 9900.99 | H57: Delfi.lt
A58: 1.2.7.1. | B58: 300x250
A59: 1.2.8. | B59: Interneto portalas Nr. 2 banerių formatai Mobile pozicijos (vnt. – 1000 parodymų) | C59: 5000 | D59: Vnt. | E59: 1.76 | G59: =IF(ISBLANK(E59),"", PRODUCT(C59,E59)+PRODUCT(C59,E59,F38)) -> 8800.88 | H59: Delfi.lt
A60: 1.2.8.1. | B60: 300x600
A61: 1.3. | B61: Interneto portalas Nr. 3
A62: 1.3.1. | B62: Interneto portalas Nr. 3 banerių formatai Desktop pozicijos (vnt. – 1000 parodymų) | C62: 5000 | D62: Vnt. | E62: 0.98 | G62: =IF(ISBLANK(E62),"", PRODUCT(C62,E62)+PRODUCT(C62,E62,F38)) -> 4900.49 | H62: Lrytas.lt
A63: 1.3.1.1. | B63: 1200x250
A64: 1.3.2. | B64: Interneto portalas Nr. 3 banerių formatai Desktop pozicijos (vnt. – 1000 parodymų) | C64: 5000 | D64: Vnt. | E64: 0.68 | G64: =IF(ISBLANK(E64),"", PRODUCT(C64,E64)+PRODUCT(C64,E64,F38)) -> 3400.34 | H64: Lrytas.lt
A65: 1.3.2.1. | B65: 995x250
A66: 1.3.3. | B66: Interneto portalas Nr. 3 banerių formatai Desktop pozicijos (vnt. – 1000 parodymų) | C66: 10000 | D66: Vnt. | E66: 0.53 | G66: =IF(ISBLANK(E66),"", PRODUCT(C66,E66)+PRODUCT(C66,E66,F38)) -> 5300.53 | H66: Lrytas.lt
A67: 1.3.3.1. | B67: 300x600
A68: 1.3.4. | B68: Interneto portalas Nr. 3 banerių formatai Desktop pozicijos (vnt. – 1000 parodymų) | C68: 1000 | D68: Vnt. | E68: 1.8 | G68: =IF(ISBLANK(E68),"", PRODUCT(C68,E68)+PRODUCT(C68,E68,F38)) -> 1800.18 | H68: Lrytas.lt
A69: 1.3.4.1. | B69: Wallpaper
A70: 1.3.5. | B70: Interneto portalas Nr. 3 banerių formatai Mobile pozicijos (vnt. – 1000 parodymų) | C70: 10000 | D70: Vnt. | E70: 0.63 | G70: =IF(ISBLANK(E70),"", PRODUCT(C70,E70)+PRODUCT(C70,E70,F38)) -> 6300.63 | H70: Lrytas.lt
A71: 1.3.5.1. | B71: 300x250
A72: 1.3.6. | B72: Interneto portalas Nr. 3 banerių formatai Mobile pozicijos (vnt. – 1000 parodymų) | C72: 5000 | D72: Vnt. | E72: 1.16 | G72: =IF(ISBLANK(E72),"", PRODUCT(C72,E72)+PRODUCT(C72,E72,F38)) -> 5800.58 | H72: Lrytas.lt
A73: 1.3.6.1. | B73: 300x600
A74: 1.4. | B74: Interneto portalas Nr. 4
A75: 1.4.1. | B75: Interneto portalas Nr. 4 banerių formatai Desktop pozicijos (vnt. – 1000 parodymų) | C75: 10000 | D75: Vnt. | E75: 0.8 | G75: =IF(ISBLANK(E75),"", PRODUCT(C75,E75)+PRODUCT(C75,E75,F38)) -> 8000.8 | H75: 15min.lt
A76: 1.4.1.1. | B76: 300x600
A77: 1.4.2. | B77: Interneto portalas Nr. 4 banerių formatai Desktop pozicijos (vnt. – 1000 parodymų) | C77: 10000 | D77: Vnt. | E77: 0.8 | G77: =IF(ISBLANK(E77),"", PRODUCT(C77,E77)+PRODUCT(C77,E77,F38)) -> 8000.8 | H77: 15min.lt
A78: 1.4.2.1. | B78: 970x250
A79: 1.4.3. | B79: Interneto portalas Nr. 4 Video 16:9 parodymai, formatas .mp4 (vnt. – 1000 parodymas) | C79: 5000 | D79: Vnt. | E79: 2 | G79: =IF(ISBLANK(E79),"", PRODUCT(C79,E79)+PRODUCT(C79,E79,F38)) -> 10001 | H79: 15min.lt
A80: 1.4.3.1. | B80: Preroll
A81: 1.4.4. | B81: Interneto portalas Nr. 4 banerių formatai Mobile pozicijos (vnt. – 1000 parodymų) | C81: 10000 | D81: Vnt. | E81: 0.8 | G81: =IF(ISBLANK(E81),"", PRODUCT(C81,E81)+PRODUCT(C81,E81,F38)) -> 8000.8 | H81: 15min.lt
A82: 1.4.4.1. | B82: 300x250
A83: 1.4.5. | B83: Interneto portalas Nr. 4 banerių formatai Mobile pozicijos (vnt. – 1000 parodymų) | C83: 1000 | D83: Vnt. | E83: 1 | G83: =IF(ISBLANK(E83),"", PRODUCT(C83,E83)+PRODUCT(C83,E83,F38)) -> 1000.1 | H83: 15min.lt
A84: 1.4.5.1. | B84: 300x600
A85: 1.5. | B85: Internetinė platforma manodienynas.lt
A86: 1.5.1. | B86: Banerinė reklama internetinėje platformoje manodienynas.lt (vnt. – 1000 parodymų arba savaitei) | C86: 1 | D86: savaitė | E86: 540 | G86: =IF(ISBLANK(E86),"", PRODUCT(C86,E86)+PRODUCT(C86,E86,F38)) -> 540.054 | H86: manodienynas.lt
A87: 1.5.1.1. | B87: 1350x745 (Desktop)
A88: 1.5.2. | B88: Banerinė reklama internetinėje platformoje manodienynas.lt (vnt. – 1000 parodymų arba savaitei) | C88: 1000 | D88: Vnt. | E88: 1.8 | G88: =IF(ISBLANK(E88),"", PRODUCT(C88,E88)+PRODUCT(C88,E88,F38)) -> 1800.18 | H88: manodienynas.lt
A89: 1.5.2.1. | B89: 1000x250 (Desktop)
A90: 1.5.3. | B90: Banerinė reklama internetinėje platformoje manodienynas.lt (vnt. – 1000 parodymų arba savaitei) | C90: 1000 | D90: Vnt. | E90: 1.5 | G90: =IF(ISBLANK(E90),"", PRODUCT(C90,E90)+PRODUCT(C90,E90,F38)) -> 1500.15 | H90: manodienynas.lt
A91: 1.5.3.1. | B91: 300x250 (Mobile)
A92: 1.6. | B92: Internetinė platforma Tamo
A93: 1.6.1. | B93: Banerinė reklama internetinėje platformoje Tamo (vnt. - savaitė) | C93: 1 | D93: savaitė | E93: 1200 | G93: =IF(ISBLANK(E93),"", PRODUCT(C93,E93)+PRODUCT(C93,E93,F38)) -> 1200.12 | H93: Tamo
A94: 1.6.1.1. | B94: 1920x1080 (Desktop)
A95: 1.6.2. | B95: Banerinė reklama internetinėje platformoje Tamo (vnt. – 1000 parodymų) | C95: 1000 | D95: Vnt. | E95: 1.25 | G95: =IF(ISBLANK(E95),"", PRODUCT(C95,E95)+PRODUCT(C95,E95,F38)) -> 1250.125 | H95: Tamo
A96: 1.6.2.1. | B96: 1000x200 (Desktop)
A97: 1.6.3. | B97: Banerinė reklama internetinėje platformoje Tamo (vnt. – 1000 parodymų) | C97: 1000 | D97: Vnt. | E97: 1 | G97: =IF(ISBLANK(E97),"", PRODUCT(C97,E97)+PRODUCT(C97,E97,F38)) -> 1000.1 | H97: Tamo
A98: 1.6.3.1. | B98: 300x250 (Mobile)
E99: Palyginamoji pasiūlymo kaina be PVM | G99: =IF((COUNT(C38:C98)<>COUNT(G38:G98)),"", SUM(G38:G98)) -> 143334.332 | H99: =IF((COUNT(C38:C98)<>COUNT(G38:G98)),"Neužpildytos visų objektų kainos", "") -> 
E100: PVM suma | G100: =G99*0.21 -> 30100.20972
E101: Palyginamoji pasiūlymo kaina su PVM | G101: =IF(ISBLANK(G100), "", SUM(G99:G100)) -> 173434.5417
A105: 2. DALIS | B105: REKLAMA SPAUDOJE
A107: Tiekėjo pasiūlymas:
A108: Nr. | B108: Pavadinimas | C108: Preliminati apimtis | D108: Mato vienetas | E108: Vieneto įkainis be PVM, Eur | F108: Administravimo procentas (%) | G108: Suma be PVM, Eur | H108: Leidinio pavadinimas
A109: 2. | B109: Reklama spaudoje
A110: 2.1. | B110: Straipsnių spausdinimas įskaitant maketavimą ir straipsnio parašymą (kur prašoma) nacionaliniai dienraščiai, savaitraščiai, laikraščiai, žurnalai
A111: 2.1.1. | B111: S2: Straipsnio sumaketavimas ir išpublikavimas Nacionaliniame verslo informaciją ir žinias skleidžiančiame savaitraštyje (1/2 psl.), straipsnį pateikia klientas | C111: 2 | D111: Vnt. | E111: 1000 | F111: 0.0001 | G111: =IF(ISBLANK(E111),"", PRODUCT(C111,E111)+PRODUCT(C111,E111,F111)) -> 2000.2 | H111: Verslo žinios
A112: 2.1.2. | B112: S4: Nacionaliniame savaitraštyje dydis: 205 x 285 mm, straipsnį parengia leidinys | C112: 1 | D112: Vnt. | E112: 1500 | G112: =IF(ISBLANK(E112),"", PRODUCT(C112,E112)+PRODUCT(C112,E112,F111)) -> 1500.15 | H112: Savaitė
A113: 2.1.3. | B113: S4: Nacionaliniame savaitraštyje dydis: 205 x 140 mm, straipsnį parengia leidinys | C113: 2 | D113: Vnt. | E113: 870 | G113: =IF(ISBLANK(E113),"", PRODUCT(C113,E113)+PRODUCT(C113,E113,F111)) -> 1740.174 | H113: Savaitė
A114: 2.1.4. | B114: S6: Nacionaliniame gyvenimo būdo skaitmeniniame ir spausdintame žurnale-albume, apimtis 2 puslapiai, straipsnį parengia leidinys | C114: 1 | D114: Vnt. | E114: 1200 | G114: =IF(ISBLANK(E114),"", PRODUCT(C114,E114)+PRODUCT(C114,E114,F111)) -> 1200.12 | H114: Lamų slėnis
A115: 2.1.5. | B115: S6: Nacionaliniame kultūros ir meno skaitmeniniame ir spausdintame žurnale-albume, apimtis 0,5 puslapio, straipsnį parengia leidinys | C115: 3 | D115: Vnt. | E115: 195 | G115: =IF(ISBLANK(E115),"", PRODUCT(C115,E115)+PRODUCT(C115,E115,F111)) -> 585.0585 | H115: Lamų slėnis
A116: 2.1.6. | B116: S7: Nacionaliniame kultūros ir meno ketvirtiniame žurnale, reklaminio projekto 1 psl., straipsnį parengia leidinys | C116: 1 | D116: Vnt. | E116: 600 | G116: =IF(ISBLANK(E116),"", PRODUCT(C116,E116)+PRODUCT(C116,E116,F111)) -> 600.06 | H116: Happy365
A117: 2.1.7. | B117: S8: Nacionaliniame dienraštyje darbo dieną, 1/2 puslapio apimties straipsnis, nesirenkant psl., jeigu straipsnį parengia leidinys | C117: 2 | D117: Vnt. | E117: 678.3 | G117: =IF(ISBLANK(E117),"", PRODUCT(C117,E117)+PRODUCT(C117,E117,F111)) -> 1356.73566 | H117: Lietuvos rytas
A118: 2.1.8. | B118: S8: Nacionaliniame dienraštyje šeštadienį, 1/2 puslapio apimties straipsnis, nesirenkant psl. jeigu straipsnį parengia leidinys | C118: 2 | D118: Vnt. | E118: 823.65 | G118: =IF(ISBLANK(E118),"", PRODUCT(C118,E118)+PRODUCT(C118,E118,F111)) -> 1647.46473 | H118: Lietuvos rytas
A119: 2.1.9. | B119: S8: Nacionaliniame dienraštyje darbo dieną, 1/2 puslapio apimties straipsnis, nesirenkant psl., jeigu straipsnį pateikia klientas | C119: 2 | D119: Vnt. | E119: 629.85 | G119: =IF(ISBLANK(E119),"", PRODUCT(C119,E119)+PRODUCT(C119,E119,F111)) -> 1259.82597 | H119: Lietuvos rytas
A120: 2.1.10. | B120: S8: Nacionaliniame dienraštyje šeštadienį, 1/2 puslapio apimties straipsnis, nesirenkant psl. jeigu straipsnį pateikia klientas | C120: 2 | D120: Vnt. | E120: 775.2 | G120: =IF(ISBLANK(E120),"", PRODUCT(C120,E120)+PRODUCT(C120,E120,F111)) -> 1550.55504 | H120: Lietuvos rytas
A121: 2.1.11. | B121: S9: Nacionaliniame savaitgaliniame gyvenimo būdo žurnale 1/2 psl., straipsnį parengia leidinys | C121: 1 | D121: Vnt. | E121: 513 | G121: =IF(ISBLANK(E121),"", PRODUCT(C121,E121)+PRODUCT(C121,E121,F111)) -> 513.0513 | H121: Savaitgalis
A122: 2.1.12. | B122: S9: Nacionaliniame savaitgaliniame gyvenimo būdo žurnale puslapis, straipsnį parengia leidinys | C122: 1 | D122: Vnt. | E122: 855 | G122: =IF(ISBLANK(E122),"", PRODUCT(C122,E122)+PRODUCT(C122,E122,F111)) -> 855.0855 | H122: Savaitgalis
A123: 2.1.13. | B123: S10: Nacionaliniame savaitiniame žurnale 1/2 psl., straipsnį parengia leidinys | C123: 1 | D123: Vnt. | E123: 294.5 | G123: =IF(ISBLANK(E123),"", PRODUCT(C123,E123)+PRODUCT(C123,E123,F111)) -> 294.52945 | H123: Stilius
A124: 2.1.14. | B124: S10: Nacionaliniame savaitiniame žurnale puslapis, straipsnį parengia leidinys | C124: 1 | D124: Vnt. | E124: 522.5 | G124: =IF(ISBLANK(E124),"", PRODUCT(C124,E124)+PRODUCT(C124,E124,F111)) -> 522.55225 | H124: Stilius
A125: 2.1.15. | B125: S11: Nacionaliniame mėnesiniame verslo, politikos ir kultūros žurnale už žurnalo puslapį 210x280 mm, straipsnį pateikia klientas | C125: 3 | D125: Vnt. | E125: 1080 | G125: =IF(ISBLANK(E125),"", PRODUCT(C125,E125)+PRODUCT(C125,E125,F111)) -> 3240.324 | H125: IQ
A126: 2.1.16. | B126: S12: Nacionaliniame savaitraštyje Vidinis puslapis, straipsnį parengia leidinys | C126: 1 | D126: Vnt. | E126: 435 | G126: =IF(ISBLANK(E126),"", PRODUCT(C126,E126)+PRODUCT(C126,E126,F111)) -> 435.0435 | H126: prie kavos
A127: 2.1.17. | B127: S12: Nacionaliniame savaitraštyje 1/2 puslapio, straipsnį parengia leidinys | C127: 1 | D127: Vnt. | E127: 270 | G127: =IF(ISBLANK(E127),"", PRODUCT(C127,E127)+PRODUCT(C127,E127,F111)) -> 270.027 | H127: prie kavos
A128: 2.2. | B128: Įvaizdinė (maketuota) reklama nacionaliniai dienraščiai, savaitraščiai, laikraščiai, žurnalai
A129: 2.2.1. | B129: S1: Mėnesiniame kultūros ir meno žurnale, vaizdinė reklama ant žurnalo viršelių. | C129: 5 | D129: Vnt. | E129: 300 | G129: =IF(ISBLANK(E129),"", PRODUCT(C129,E129)+PRODUCT(C129,E129,F111)) -> 1500.15 | H129: Nemunas
A130: 2.2.2. | B130: S1: Mėnesiniame kultūros ir meno žurnale, vaizdinė reklama žurnalo vidiniuose puslapiuose, puslapio apimties reklama. | C130: 5 | D130: Vnt. | E130: 100 | G130: =IF(ISBLANK(E130),"", PRODUCT(C130,E130)+PRODUCT(C130,E130,F111)) -> 500.05 | H130: Nemunas
A131: 2.2.3. | B131: S2: Nacionaliniame verslo informaciją ir žinias skleidžiančiame savaitraštyje, spalvotai vidiniai savaitraščio puslapiai, dydis 126 x 88 mm | C131: 1 | D131: Vnt. | E131: 288.56 | G131: =IF(ISBLANK(E131),"", PRODUCT(C131,E131)+PRODUCT(C131,E131,F111)) -> 288.588856 | H131: Verslo žinios
A132: 2.2.4. | B132: S2: Nacionaliniame verslo informaciją ir žinias skleidžiančiame savaitraštyje, spalvotai vidiniai savaitraščio puslapiai, dydis 254 x 178 mm | C132: 1 | D132: Vnt. | E132: 1154.25 | G132: =IF(ISBLANK(E132),"", PRODUCT(C132,E132)+PRODUCT(C132,E132,F111)) -> 1154.365425 | H132: Verslo žinios
A133: 2.2.5. | B133: S2: Nacionaliniame verslo informaciją ir žinias skleidžiančiame savaitraštyje, spalvotai vidiniai savaitraščio puslapiai, dydis 254 x 390 mm | C133: 1 | D133: Vnt. | E133: 2315.63 | G133: =IF(ISBLANK(E133),"", PRODUCT(C133,E133)+PRODUCT(C133,E133,F111)) -> 2315.861563 | H133: Verslo žinios
A134: 2.2.6. | B134: S3: Kauno regiono dienraštyje darbo dienomis: 1 puslapio apimties maketuota reklama | C134: 15 | D134: Vnt. | E134: 150 | G134: =IF(ISBLANK(E134),"", PRODUCT(C134,E134)+PRODUCT(C134,E134,F111)) -> 2250.225 | H134: Kauno diena
A135: 2.2.7. | B135: S3: Kauno regiono dienraštyje nedarbo dienomis: 1 puslapio apimties maketuota reklama | C135: 15 | D135: Vnt. | E135: 150 | G135: =IF(ISBLANK(E135),"", PRODUCT(C135,E135)+PRODUCT(C135,E135,F111)) -> 2250.225 | H135: Kauno diena
A136: 2.2.8. | B136: S3: Kauno regiono dienraštyje darbo dienomis: 1/2 puslapio apimties maketuota reklama | C136: 10 | D136: Vnt. | E136: 100 | G136: =IF(ISBLANK(E136),"", PRODUCT(C136,E136)+PRODUCT(C136,E136,F111)) -> 1000.1 | H136: Kauno diena
A137: 2.2.9. | B137: S3: Kauno regiono dienraštyje nedarbo dienomis: 1/2 puslapio apimties maketuota reklama | C137: 10 | D137: Vnt. | E137: 100 | G137: =IF(ISBLANK(E137),"", PRODUCT(C137,E137)+PRODUCT(C137,E137,F111)) -> 1000.1 | H137: Kauno diena
A138: 2.2.10. | B138: S4: Nacionaliniame savaitraštyje dydis: 205 x 285 mm | C138: 3 | D138: Vnt. | E138: 1400 | G138: =IF(ISBLANK(E138),"", PRODUCT(C138,E138)+PRODUCT(C138,E138,F111)) -> 4200.42 | H138: Savaitė
A139: 2.2.11. | B139: S4: Nacionaliniame savaitraštyje dydis: 205 x 140 mm | C139: 2 | D139: Vnt. | E139: 770 | G139: =IF(ISBLANK(E139),"", PRODUCT(C139,E139)+PRODUCT(C139,E139,F111)) -> 1540.154 | H139: Savaitė
A140: 2.2.12. | B140: S4: Nacionaliniame savaitraštyje dydis: 205 x 70 mm | C140: 2 | D140: Vnt. | E140: 420 | G140: =IF(ISBLANK(E140),"", PRODUCT(C140,E140)+PRODUCT(C140,E140,F111)) -> 840.084 | H140: Savaitė
A141: 2.2.13. | B141: S5: Nacionaliniame mėnesiniame miesto kultūros žurnale, III viršelis | C141: 1 | D141: Vnt. | E141: 250 | G141: =IF(ISBLANK(E141),"", PRODUCT(C141,E141)+PRODUCT(C141,E141,F111)) -> 250.025 | H141: 370
A142: 2.2.14. | B142: S5: Nacionaliniame mėnesiniame miesto kultūros žurnale, Vidinis puslapis | C142: 2 | D142: Vnt. | E142: 200 | G142: =IF(ISBLANK(E142),"", PRODUCT(C142,E142)+PRODUCT(C142,E142,F111)) -> 400.04 | H142: 370
A143: 2.2.15. | B143: S5: Nacionaliniame mėnesiniame miesto kultūros žurnale, Pusė puslapio | C143: 2 | D143: Vnt. | E143: 150 | G143: =IF(ISBLANK(E143),"", PRODUCT(C143,E143)+PRODUCT(C143,E143,F111)) -> 300.03 | H143: 370
A144: 2.2.16. | B144: S6: Nacionaliniame kultūros ir meno skaitmeniniame ir spausdintame žurnale-albume, apimtis 1 puslapis | C144: 2 | D144: Vnt. | E144: 750 | G144: =IF(ISBLANK(E144),"", PRODUCT(C144,E144)+PRODUCT(C144,E144,F111)) -> 1500.15 | H144: Lamų slėnis
A145: 2.2.17. | B145: S6: Nacionaliniame kultūros ir meno skaitmeniniame ir spausdintame žurnale-albume, apimtis 1/2 puslapio | C145: 1 | D145: Vnt. | E145: 520 | G145: =IF(ISBLANK(E145),"", PRODUCT(C145,E145)+PRODUCT(C145,E145,F111)) -> 520.052 | H145: Lamų slėnis
A146: 2.2.18. | B146: S7: Nacionaliniame kultūros ir meno ketvirtiniame žurnale, III viršelis | C146: 3 | D146: Vnt. | E146: 420 | G146: =IF(ISBLANK(E146),"", PRODUCT(C146,E146)+PRODUCT(C146,E146,F111)) -> 1260.126 | H146: Happy365
A147: 2.2.19. | B147: S7: Nacionaliniame kultūros ir meno ketvirtiniame žurnale, vidinis puslapis | C147: 2 | D147: Vnt. | E147: 480 | G147: =IF(ISBLANK(E147),"", PRODUCT(C147,E147)+PRODUCT(C147,E147,F111)) -> 960.096 | H147: Happy365
A148: 2.2.20. | B148: S7: Nacionaliniame kultūros ir meno ketvirtiniame žurnale, pusė puslapio | C148: 1 | D148: Vnt. | E148: 300 | G148: =IF(ISBLANK(E148),"", PRODUCT(C148,E148)+PRODUCT(C148,E148,F111)) -> 300.03 | H148: Happy365
A149: 2.2.21. | B149: S7: Nacionaliniame kultūros ir meno ketvirtiniame žurnale, ketvirtis puslapio | C149: 1 | D149: Vnt. | E149: 180 | G149: =IF(ISBLANK(E149),"", PRODUCT(C149,E149)+PRODUCT(C149,E149,F111)) -> 180.018 | H149: Happy365
A150: 2.2.22. | B150: S8: Nacionaliniame dienraštyje darbo dieną, I psl. Reklama, dydis: 4,8 cm x 6 cm | C150: 5 | D150: Vnt. | E150: 60 | G150: =IF(ISBLANK(E150),"", PRODUCT(C150,E150)+PRODUCT(C150,E150,F111)) -> 300.03 | H150: Lietuvos rytas
A151: 2.2.23. | B151: S8: Nacionaliniame dienraštyje šeštadienį, I psl. reklama, dydis: 4,8 cm x 6 cm | C151: 5 | D151: Vnt. | E151: 80 | G151: =IF(ISBLANK(E151),"", PRODUCT(C151,E151)+PRODUCT(C151,E151,F111)) -> 400.04 | H151: Lietuvos rytas
A152: 2.2.24. | B152: S8: Nacionaliniame dienraštyje darbo dieną, I psl. reklama, dydis: 14,4 cm x 8,3 cm | C152: 5 | D152: Vnt. | E152: 150 | G152: =IF(ISBLANK(E152),"", PRODUCT(C152,E152)+PRODUCT(C152,E152,F111)) -> 750.075 | H152: Lietuvos rytas
A153: 2.2.25. | B153: S8: Nacionaliniame dienraštyje šeštadienį, I psl. reklama, dydis: 14,4 cm x 8,3 cm | C153: 5 | D153: Vnt. | E153: 250 | G153: =IF(ISBLANK(E153),"", PRODUCT(C153,E153)+PRODUCT(C153,E153,F111)) -> 1250.125 | H153: Lietuvos rytas
A154: 2.2.26. | B154: S9: Nacionaliniame savaitgaliniame gyvenimo būdo žurnale III viršelis | C154: 2 | D154: Vnt. | E154: 750 | G154: =IF(ISBLANK(E154),"", PRODUCT(C154,E154)+PRODUCT(C154,E154,F111)) -> 1500.15 | H154: Savaitgalis
A155: 2.2.27. | B155: S9: Nacionaliniame savaitgaliniame gyvenimo būdo žurnale 1/3 psl. | C155: 2 | D155: Vnt. | E155: 300 | G155: =IF(ISBLANK(E155),"", PRODUCT(C155,E155)+PRODUCT(C155,E155,F111)) -> 600.06 | H155: Savaitgalis
A156: 2.2.28. | B156: S9: Nacionaliniame savaitgaliniame gyvenimo būdo žurnale 1/2 psl. | C156: 4 | D156: Vnt. | E156: 450 | G156: =IF(ISBLANK(E156),"", PRODUCT(C156,E156)+PRODUCT(C156,E156,F111)) -> 1800.18 | H156: Savaitgalis
A157: 2.2.29. | B157: S9: Nacionaliniame savaitgaliniame gyvenimo būdo žurnale puslapis | C157: 1 | D157: Vnt. | E157: 750 | G157: =IF(ISBLANK(E157),"", PRODUCT(C157,E157)+PRODUCT(C157,E157,F111)) -> 750.075 | H157: Savaitgalis
A158: 2.2.30. | B158: S10: Nacionaliniame savaitiniame žurnale II viršelis | C158: 2 | D158: Vnt. | E158: 440 | G158: =IF(ISBLANK(E158),"", PRODUCT(C158,E158)+PRODUCT(C158,E158,F111)) -> 880.088 | H158: Stilius
A159: 2.2.31. | B159: S10: Nacionaliniame savaitiniame žurnale 1/4 psl. | C159: 2 | D159: Vnt. | E159: 132 | G159: =IF(ISBLANK(E159),"", PRODUCT(C159,E159)+PRODUCT(C159,E159,F111)) -> 264.0264 | H159: Stilius
A160: 2.2.32. | B160: S10: Nacionaliniame savaitiniame žurnale 1/3 psl. | C160: 1 | D160: Vnt. | E160: 198 | G160: =IF(ISBLANK(E160),"", PRODUCT(C160,E160)+PRODUCT(C160,E160,F111)) -> 198.0198 | H160: Stilius
A161: 2.2.33. | B161: S10: Nacionaliniame savaitiniame žurnale 1/2 psl. | C161: 2 | D161: Vnt. | E161: 220 | G161: =IF(ISBLANK(E161),"", PRODUCT(C161,E161)+PRODUCT(C161,E161,F111)) -> 440.044 | H161: Stilius
A162: 2.2.34. | B162: S10: Nacionaliniame savaitiniame žurnale puslapis | C162: 2 | D162: Vnt. | E162: 422.4 | G162: =IF(ISBLANK(E162),"", PRODUCT(C162,E162)+PRODUCT(C162,E162,F111)) -> 844.88448 | H162: Stilius
A163: 2.2.35. | B163: S11: Nacionaliniame mėnesiniame verslo, politikos ir kultūros žurnale už žurnalo puslapį 210x280 mm | C163: 5 | D163: Vnt. | E163: 1080 | G163: =IF(ISBLANK(E163),"", PRODUCT(C163,E163)+PRODUCT(C163,E163,F111)) -> 5400.54 | H163: IQ
A164: 2.2.36. | B164: S12: Nacionaliniame savaitraštyje II viršelis | C164: 2 | D164: Vnt. | E164: 440 | G164: =IF(ISBLANK(E164),"", PRODUCT(C164,E164)+PRODUCT(C164,E164,F111)) -> 880.088 | H164: prie kavos
A165: 2.2.37. | B165: S12: Nacionaliniame savaitraštyje Vidinis puslapis | C165: 2 | D165: Vnt. | E165: 385 | G165: =IF(ISBLANK(E165),"", PRODUCT(C165,E165)+PRODUCT(C165,E165,F111)) -> 770.077 | H165: prie kavos
A166: 2.2.38. | B166: S12: Nacionaliniame savaitraštyje 1/2 puslapio | C166: 1 | D166: Vnt. | E166: 220 | G166: =IF(ISBLANK(E166),"", PRODUCT(C166,E166)+PRODUCT(C166,E166,F111)) -> 220.022 | H166: prie kavos
A167: 2.2.39. | B167: S13: Klaipėdos regiono dienraštyje darbo dienomis: 1 puslapio apimties maketuota reklama | C167: 4 | D167: Vnt. | E167: 150 | G167: =IF(ISBLANK(E167),"", PRODUCT(C167,E167)+PRODUCT(C167,E167,F111)) -> 600.06 | H167: Klaipėda
A168: 2.2.40. | B168: S13: Klaipėdos regiono dienraštyje nedarbo dienomis: 1 puslapio apimties maketuota reklama | C168: 4 | D168: Vnt. | E168: 150 | G168: =IF(ISBLANK(E168),"", PRODUCT(C168,E168)+PRODUCT(C168,E168,F111)) -> 600.06 | H168: Klaipėda
A169: 2.2.41. | B169: S13: Klaipėdos regiono dienraštyje darbo dienomis: 1/2 puslapio apimties maketuota reklama | C169: 2 | D169: Vnt. | E169: 100 | G169: =IF(ISBLANK(E169),"", PRODUCT(C169,E169)+PRODUCT(C169,E169,F111)) -> 200.02 | H169: Klaipėda
A170: 2.2.42. | B170: S13: Klaipėdos regiono dienraštyje nedarbo dienomis: 1/2 puslapio apimties maketuota reklama | C170: 2 | D170: Vnt. | E170: 100 | G170: =IF(ISBLANK(E170),"", PRODUCT(C170,E170)+PRODUCT(C170,E170,F111)) -> 200.02 | H170: Klaipėda
E171: Palyginamoji pasiūlymo kaina be PVM | G171: =IF((COUNT(C111:C170)<>COUNT(G111:G170)),"", SUM(G111:G170)) -> 62930.53242 | H171: =IF((COUNT(C111:C170)<>COUNT(G111:G170)),"Neužpildytos visų objektų kainos", "") -> 
E172: PVM suma | G172: =G171*0.21 -> 13215.41181
E173: Palyginamoji pasiūlymo kaina su PVM | G173: =IF(ISBLANK(G172), "", SUM(G171:G172)) -> 76145.94423
A177: 3. DALIS | B177: REKLAMA RADIJUJE
A179: Tiekėjo pasiūlymas:
A180: Nr. | B180: Pavadinimas | C180: Preliminati apimtis | D180: Mato vienetas | E180: Vieneto įkainis be PVM, Eur | F180: Administravimo procentas (%) | G180: Suma be PVM, Eur | H180: Radijo stoties pavadinimas
A181: 3. | B181: Reklama radijuje
A182: 3.1. | B182: Radijo stotis, kurios dienos pasiekiamumas pagal Kantar TNS 2020 rudens – žiemos (2020.09.01 -2021.02.28) tyrimo duomenis ne mažesnis nei 13 % ir ne didesnis nei 13,9 %
A183: 3.1.1. | B183: [Radijo stotis Nr. 1] Radijo stotis, kurios dienos pasiekiamumas pagal Kantar TNS 2020 rudens – žiemos (2020.09.01 -2021.02.28) tyrimo duomenis ne mažesnis nei 13 % ir ne didesnis nei 13,9 % | C183: 200 | D183: iki 15 sek. | E183: 93.93 | F183: 0.0001 | G183: =IF(ISBLANK(E183),"", PRODUCT(C183,E183)+PRODUCT(C183,E183,F183)) -> 18787.8786 | H183: M-1
A184: 3.1.1.1. | B184: A laiko juosta
A185: 3.1.2. | B185: [Radijo stotis Nr. 1] Radijo stotis, kurios dienos pasiekiamumas pagal Kantar TNS 2020 rudens – žiemos (2020.09.01 -2021.02.28) tyrimo duomenis ne mažesnis nei 13 % ir ne didesnis nei 13,9 % | C185: 50 | D185: iki 30 sek. | E185: 101.66 | G185: =IF(ISBLANK(E185),"", PRODUCT(C185,E185)+PRODUCT(C185,E185,F183)) -> 5083.5083 | H185: M-1
A186: 3.1.2.1. | B186: A laiko juosta
A187: 3.1.3. | B187: [Radijo stotis Nr. 1] Radijo stotis, kurios dienos pasiekiamumas pagal Kantar TNS 2020 rudens – žiemos (2020.09.01 -2021.02.28) tyrimo duomenis ne mažesnis nei 13 % ir ne didesnis nei 13,9 % | C187: 200 | D187: iki 15 sek. | E187: 39.78 | G187: =IF(ISBLANK(E187),"", PRODUCT(C187,E187)+PRODUCT(C187,E187,F183)) -> 7956.7956 | H187: M-1
A188: 3.1.3.1. | B188: B laiko juosta
A189: 3.1.4. | B189: [Radijo stotis Nr. 1] Radijo stotis, kurios dienos pasiekiamumas pagal Kantar TNS 2020 rudens – žiemos (2020.09.01 -2021.02.28) tyrimo duomenis ne mažesnis nei 13 % ir ne didesnis nei 13,9 % | C189: 50 | D189: iki 30 sek. | E189: 57.46 | G189: =IF(ISBLANK(E189),"", PRODUCT(C189,E189)+PRODUCT(C189,E189,F183)) -> 2873.2873 | H189: M-1
A190: 3.1.4.1. | B190: B laiko juosta
A191: 3.1.5. | B191: [Radijo stotis Nr. 1] Radijo stotis, kurios dienos pasiekiamumas pagal Kantar TNS 2020 rudens – žiemos (2020.09.01 -2021.02.28) tyrimo duomenis ne mažesnis nei 13 % ir ne didesnis nei 13,9 % | C191: 200 | D191: iki 15 sek. | E191: 30.94 | G191: =IF(ISBLANK(E191),"", PRODUCT(C191,E191)+PRODUCT(C191,E191,F183)) -> 6188.6188 | H191: M-1
A192: 3.1.5.1. | B192: C laiko juosta
A193: 3.1.6. | B193: [Radijo stotis Nr. 1] Radijo stotis, kurios dienos pasiekiamumas pagal Kantar TNS 2020 rudens – žiemos (2020.09.01 -2021.02.28) tyrimo duomenis ne mažesnis nei 13 % ir ne didesnis nei 13,9 % | C193: 50 | D193: iki 30 sek. | E193: 44.2 | G193: =IF(ISBLANK(E193),"", PRODUCT(C193,E193)+PRODUCT(C193,E193,F183)) -> 2210.221 | H193: M-1
A194: 3.1.6.1. | B194: C laiko juosta
A195: 3.1.7. | B195: [Radijo stotis Nr. 1] Radijo stotis, kurios dienos pasiekiamumas pagal Kantar TNS 2020 rudens – žiemos (2020.09.01 -2021.02.28) tyrimo duomenis ne mažesnis nei 13 % ir ne didesnis nei 13,9 % | C195: 200 | D195: iki 15 sek. | E195: 18.56 | G195: =IF(ISBLANK(E195),"", PRODUCT(C195,E195)+PRODUCT(C195,E195,F183)) -> 3712.3712 | H195: M-1
A196: 3.1.7.1. | B196: D laiko juosta
A197: 3.1.8. | B197: [Radijo stotis Nr. 1] Radijo stotis, kurios dienos pasiekiamumas pagal Kantar TNS 2020 rudens – žiemos (2020.09.01 -2021.02.28) tyrimo duomenis ne mažesnis nei 13 % ir ne didesnis nei 13,9 % | C197: 50 | D197: iki 30 sek. | E197: 26.52 | G197: =IF(ISBLANK(E197),"", PRODUCT(C197,E197)+PRODUCT(C197,E197,F183)) -> 1326.1326 | H197: M-1
A198: 3.1.8.1. | B198: D laiko juosta
A199: 3.2. | B199: Radijo stotis, kurios dienos pasiekiamumas pagal Kantar TNS 2020 rudens – žiemos (2020.09.01 -2021.02.28) tyrimo duomenis ne mažesnis nei 10,9 % ir ne didesnis nei 11,9 %
A200: 3.2.1. | B200: [Radijo stotis Nr. 2] Radijo stotis, kurios dienos pasiekiamumas pagal Kantar TNS 2020 rudens – žiemos (2020.09.01 -2021.02.28) tyrimo duomenis ne mažesnis nei 10,9 % ir ne didesnis nei 11,9 % | C200: 50 | D200: iki 15 sek. | E200: 28.73 | G200: =IF(ISBLANK(E200),"", PRODUCT(C200,E200)+PRODUCT(C200,E200,F183)) -> 1436.64365 | H200: Lietus
A201: 3.2.1.1. | B201: A laiko juosta
A202: 3.2.2. | B202: [Radijo stotis Nr. 2] Radijo stotis, kurios dienos pasiekiamumas pagal Kantar TNS 2020 rudens – žiemos (2020.09.01 -2021.02.28) tyrimo duomenis ne mažesnis nei 10,9 % ir ne didesnis nei 11,9 % | C202: 10 | D202: iki 30 sek. | E202: 39.78 | G202: =IF(ISBLANK(E202),"", PRODUCT(C202,E202)+PRODUCT(C202,E202,F183)) -> 397.83978 | H202: Lietus
A203: 3.2.2.1. | B203: A laiko juosta
A204: 3.2.3. | B204: [Radijo stotis Nr. 2] Radijo stotis, kurios dienos pasiekiamumas pagal Kantar TNS 2020 rudens – žiemos (2020.09.01 -2021.02.28) tyrimo duomenis ne mažesnis nei 10,9 % ir ne didesnis nei 11,9 % | C204: 50 | D204: iki 15 sek. | E204: 26.52 | G204: =IF(ISBLANK(E204),"", PRODUCT(C204,E204)+PRODUCT(C204,E204,F183)) -> 1326.1326 | H204: Lietus
A205: 3.2.3.1. | B205: B laiko juosta
A206: 3.2.4. | B206: [Radijo stotis Nr. 2] Radijo stotis, kurios dienos pasiekiamumas pagal Kantar TNS 2020 rudens – žiemos (2020.09.01 -2021.02.28) tyrimo duomenis ne mažesnis nei 10,9 % ir ne didesnis nei 11,9 % | C206: 10 | D206: iki 30 sek. | E206: 37.57 | G206: =IF(ISBLANK(E206),"", PRODUCT(C206,E206)+PRODUCT(C206,E206,F183)) -> 375.73757 | H206: Lietus
A207: 3.2.4.1. | B207: B laiko juosta
A208: 3.2.5. | B208: [Radijo stotis Nr. 2] Radijo stotis, kurios dienos pasiekiamumas pagal Kantar TNS 2020 rudens – žiemos (2020.09.01 -2021.02.28) tyrimo duomenis ne mažesnis nei 10,9 % ir ne didesnis nei 11,9 % | C208: 50 | D208: iki 15 sek. | E208: 24.31 | G208: =IF(ISBLANK(E208),"", PRODUCT(C208,E208)+PRODUCT(C208,E208,F183)) -> 1215.62155 | H208: Lietus
A209: 3.2.5.1. | B209: C laiko juosta
A210: 3.2.6. | B210: [Radijo stotis Nr. 2] Radijo stotis, kurios dienos pasiekiamumas pagal Kantar TNS 2020 rudens – žiemos (2020.09.01 -2021.02.28) tyrimo duomenis ne mažesnis nei 10,9 % ir ne didesnis nei 11,9 % | C210: 10 | D210: iki 30 sek. | E210: 33.15 | G210: =IF(ISBLANK(E210),"", PRODUCT(C210,E210)+PRODUCT(C210,E210,F183)) -> 331.53315 | H210: Lietus
A211: 3.2.6.1. | B211: C laiko juosta
A212: 3.2.7. | B212: [Radijo stotis Nr. 2] Radijo stotis, kurios dienos pasiekiamumas pagal Kantar TNS 2020 rudens – žiemos (2020.09.01 -2021.02.28) tyrimo duomenis ne mažesnis nei 10,9 % ir ne didesnis nei 11,9 % | C212: 50 | D212: iki 15 sek. | E212: 19.34 | G212: =IF(ISBLANK(E212),"", PRODUCT(C212,E212)+PRODUCT(C212,E212,F183)) -> 967.0967 | H212: Lietus
A213: 3.2.7.1. | B213: D laiko juosta
A214: 3.2.8. | B214: [Radijo stotis Nr. 2] Radijo stotis, kurios dienos pasiekiamumas pagal Kantar TNS 2020 rudens – žiemos (2020.09.01 -2021.02.28) tyrimo duomenis ne mažesnis nei 10,9 % ir ne didesnis nei 11,9 % | C214: 10 | D214: iki 30 sek. | E214: 27.63 | G214: =IF(ISBLANK(E214),"", PRODUCT(C214,E214)+PRODUCT(C214,E214,F183)) -> 276.32763 | H214: Lietus
A215: 3.2.8.1. | B215: D laiko juosta
... 173 more rows

Sheet Subtiekėjai ir priedai
A2: Ūkio subjektai (įskaitant kvazisubtiekėjus - fiziniai asmenys, kuriuos ketinama įdarbinti pirkimo laimėjimo atveju), kurių pajėgumais tiekėjas remiasi, kad atitiktų keliamus kvalifikacijos reikalavimus:
A5: Pavadinimas* | C5: Kodas, adresas | F5: Perduodami įsipareigojimai | I5: Perduodamų įsipareigojimų dalis nuo visos pirkimo sutarties (Eur arba %) | K5: Kval. Reikalavimo Nr.
A17: Subtiekėjams / subteikėjams / subrangovams numatomos perduoti veiklos (privaloma nurodyti) ir šių ūkio subjektų pavadinimai (jei žinomi):
A19: Pavadinimas | C19: Kodas, adresas | F19: Perduodama veikla* | I19: Perduodamos veiklos dalis nuo visos pirkimo sutarties (Eur arba %)
A33: Kartu su pasiūlymu pateikiami šie dokumentai:
A35: Nr. | B35: Dokumento pavadinimas | H35: Dokumentas yra konfidencialus? Taip/Ne
A36: 1 | B36: Jungtinės veiklos kopija (jei taikoma)
A37: 2 | B37: Europos bendrasis viešųjų pirkimų dokumentas | H37: Ne
A38: 3 | B38: Subtiekimo sutartis, ketinimų protokolas, preliminarios sutartys ar kiti dokumentai, patvirtinantys, kad laimėjus pirkimą tiekėjui bus prieinami kitų ūkio subjektų ištekliai (jei pasitelkiami kvalifikacijos atitikimui)
A39: 4 | B39: 2_CARAT_Techninė specifikacija-s0827.pdf | H39: Ne
A40: 5 | B40: 4_CARAT_Spaudos tirazu irodymai-s0827.pdf | H40: Taip
A41: 6 | B41: 5_CARAT_Interneto portalu irodymai-s0827.pdf | H41: Taip
A48: Pasiūlyme nurodyta Prekės kaina, išskyrus jos sudedamąsias dalis, subtiekėjai, taip pat kita informacija, kuri teisės aktų nustatyta tvarka turi būti skelbiama arba kitokiu būdu viešai prieinama visuomenei, nėra laikoma konfidencialia informacija. Konfidencialią informaciją sudaro, visų pirma, komercinė (gamybinė) paslaptis ir konfidencialieji pasiūlymų aspektai. Informacija, kurią viešai skelbti įpareigoja Lietuvos Respublikos įstatymai, negali būti tiekėjo nurodoma kaip konfidenciali, todėl, tiekėjui nurodžius tokią informaciją kaip konfidencialią, perkančioji organizacija turi teisę ją skelbti. Jei tiekėjas nenurodo konfidencialios informacijos, laikoma, kad konfidencialios informacijos tiekėjo pasiūlyme nėra. Vadovaujantis Informacijos viešinimo Centrinėje viešųjų pirkimų informacinėje sistemoje tvarkos aprašu, patvirtintu Viešųjų pirkimų tarnybos direktoriaus 2017 m. birželio 19 d. įsakymu Nr. 1S-91 „Dėl Informacijos viešinimo Centrinėje viešųjų pirkimų informacinėje sistemoje tvarkos aprašo patvirtinimo“, perkančioji organizacija laimėjusio dalyvio pasiūlymą, išskyrus informaciją, kurią tiekėjas nurodė kaip konfidencialią, paskelbs CVP IS.
A51: Tiekėjo arba jo įgalioto asmens pareigų pavadinimas: | E51: Vykdančioji direktorė
A53: Pasirašančio asmens vardas ir pavardė: | E53: Rita Jermakaitė
A100: 2363 2021-07-25 14:39:51
